bitfinex-derivatives/quotes_SOLF0:USTF0_20250901
["timestamp","ask_amount","ask_price","bid_price","bid_amount"]
[1756747935148,128.72,198.07,197.99,7.88]
[1756747937337,128.72,198.07,197.94,2.85607951]
[1756747937635,2.85607951,198.05,197.95,7.88]
[1756747938446,2.85607951,198.02,197.95,7.88]
[1756747940351,2.85607951,198.02,197.89,7.88]
[1756747940746,2.85607951,197.99,197.89,7.88]
[1756747940947,18.84,197.98,197.89,7.88]
[1756747941952,2.85607951,197.96,197.89,7.88]
[1756747943843,2.85607951,197.93,197.82,7.88]
[1756747944249,2.85607951,197.9,197.82,7.88]
[1756747947251,57.7,197.89,197.82,7.88]
[1756747947442,2.85607951,197.9,197.82,7.88]
[1756747947642,42.62,197.89,197.82,7.88]
[1756747948244,2.85607951,197.87,197.82,7.88]
[1756747948855,44.32,197.86,197.82,7.88]
[1756747949256,2.85607951,197.87,197.82,7.88]
[1756747949454,86.38,197.86,197.82,7.88]
[1756747949748,126.28,197.85,197.79,7.88]
[1756747949954,119.96,197.86,197.79,7.88]
[1756747950454,122.81607951,197.86,197.79,7.88]
[1756747950649,2.85607951,197.86,197.79,7.88]
[1756747950954,128.72,197.85,197.79,7.88]
[1756747952652,2.85607951,197.86,197.79,7.88]
[1756747952952,16.1,197.85,197.76,7.88]
[1756747953150,354.59,197.99,197.76,7.88]
[1756747953456,2.85607951,197.88,197.76,7.88]
[1756747953650,128.7,197.87,197.76,7.88]
[1756747954458,126.72,197.86,197.76,7.88]
[1756747954756,2.85607951,197.88,197.76,7.88]
[1756747954757,2.85607951,197.85,197.76,7.88]
[1756747954950,5.42,197.84,197.76,7.88]
[1756747956155,10.36,197.83,197.76,7.88]
[1756747956453,15.15,197.98,197.76,7.88]
[1756747956655,2.85607951,197.86,197.76,7.88]
[1756747956855,128.7,197.85,197.76,7.88]
[1756747957361,2.85607951,197.83,197.76,7.88]
[1756747958250,125.9,197.82,197.76,7.88]
[1756747959461,124.1,197.83,197.76,7.88]
[1756747959658,122.34,197.86,197.79,8.17]
[1756747959962,0.03,197.85,197.79,8.17]
[1756747960261,0.03,197.85,197.76,8.17]
[1756747961764,0.03,197.82,197.66,8.17]
[1756747961957,0.03,197.82,197.7,8.17]
[1756747962157,2.88607951,197.82,197.7,8.17]
[1756747962461,339.78,197.85,197.81,8.17]
[1756747962657,339.78,197.85,197.8,2.85607951]
[1756747962863,339.78,197.85,197.81,8.17]
[1756747963054,339.78,197.85,197.8,2.85607951]
[1756747963362,339.78,197.85,197.81,8.17]
[1756747963662,339.78,197.85,197.84,8.17]
[1756747963863,128.66,197.89,197.84,8.17]
[1756747964252,4.5474,197.89,197.83,2.85607951]
[1756747964457,4.5474,197.89,197.86,2.85607951]
[1756747964758,70.7176,197.94,197.86,2.85607951]
[1756747964759,199.3776,197.94,197.87,8.17]
[1756747964963,128.66,197.94,197.87,8.17]
[1756747965162,70.7102,197.96,197.87,8.17]
[1756747965357,339.8,197.97,197.92,2.85607951]
[1756747965559,339.8,197.97,197.93,8.17]
[1756747966662,0.03,197.96,197.89,2.85607951]
[1756747966855,339.8,197.97,197.89,2.85607951]
[1756747967261,339.8,197.97,197.9,8.17]
[1756747968764,339.83,197.97,197.9,8.17]
[1756747968964,339.83,197.97,197.89,2.85607951]
[1756747969163,339.83,197.97,197.86,8.17]
[1756747969365,0.03,197.95,197.86,11.02607951]
[1756747969558,0.03,197.95,197.83,2.85607951]
[1756747969861,339.8,197.97,197.82,8.17]
[1756747969862,0.03,197.92,197.82,8.17]
[1756747970063,128.6,197.91,197.82,8.17]
[1756747970654,0.03,197.9,197.82,8.17]
[1756747971567,0.03,197.9,197.7,8.17]
[1756747971766,0.03,197.9,197.78,8.17]
[1756747972767,128.58,197.89,197.78,8.17]
[1756747974465,0.03,197.9,197.81,8.17]
[1756747974671,38.98,197.89,197.81,8.17]
[1756747975468,0.03,197.96,197.81,8.17]
[1756747975769,0.03,197.96,197.84,8.17]
[1756747975962,0.03,197.96,197.86,4.57927231]
[1756747976168,128.56,197.95,197.87,8.17]
[1756747976870,0.03,197.94,197.83,12.74927231]
[1756747978063,128.54,197.93,197.84,8.17]
[1756747978268,128.54,197.92,197.86,4.57927231]
[1756747978574,128.54,197.92,197.86,12.74927231]
[1756747979465,128.54,197.92,197.83,4.57927231]
[1756747979869,128.54,197.92,197.84,8.17]
[1756747980575,4.57927231,198.09,197.92,8.17]
[1756747980779,128.52,198.08,197.93,4.57927231]
[1756747981073,128.52,198.08,197.94,8.17]
[1756747983071,133.09927231,198.08,197.87,8.17]
[1756747983276,133.09927231,198.08,197.91,4.57927231]
[1756747984379,124.78,198.07,197.91,4.57927231]
[1756747984572,4.57927231,198.05,197.91,4.57927231]
[1756747985171,4.57927231,198.05,197.82,4.24282772]
[1756747985380,4.57927231,198.03,197.88,4.57927231]
[1756747985679,4.57927231,198.03,197.88,12.74927231]
[1756747985872,4.57927231,198.03,197.88,8.17]
[1756747986177,4.57927231,198.0,197.88,8.17]
[1756747986375,27.98,197.99,197.88,8.17]
[1756747986975,33.56,197.98,197.88,8.17]
[1756747987971,0.05,197.97,197.88,8.17]
[1756747988572,34.76,197.96,197.88,8.17]
[1756747990079,0.05,197.95,197.85,4.57927231]
[1756747990581,73.48,197.94,197.86,7.69]
[1756747993079,0.05,197.99,197.89,7.69]
[1756747993286,128.42,197.98,197.89,7.69]
[1756747993782,339.66,198.0,197.92,7.69]
[1756747993976,339.66,198.0,197.97,7.69]
[1756747994386,339.66,198.0,197.99,10.54774193]
[1756747995177,339.66,198.0,197.99,2.85774193]
[1756747995782,339.71,198.0,197.96,2.85774193]
[1756747995979,339.71,198.0,197.93,2.85774193]
[1756747996683,468.04,198.0,197.96,10.54774193]
[1756747996879,468.09,198.0,197.9,7.69]
[1756747997082,468.09,198.0,197.92,2.85774193]
[1756747997283,468.09,198.0,197.9,7.69]
[1756747998586,128.36,197.99,197.9,12.26562046]
[1756747999584,0.05,197.98,197.87,4.57562046]
[1756748000185,0.05,197.98,197.88,7.69]
[1756748001187,128.34,197.97,197.89,4.57562046]
[1756748004191,128.34,197.97,197.88,7.69]
[1756748004591,0.05,197.96,197.88,7.69]
[1756748007490,0.05,197.96,197.84,7.69]
[1756748008192,128.34,197.97,197.84,7.69]
[1756748008396,0.05,197.96,197.84,7.69]
[1756748008790,128.34,197.97,197.84,7.69]
[1756748008989,0.05,197.96,197.84,7.69]
[1756748009990,128.34,197.97,197.84,7.69]
[1756748010289,0.05,197.96,197.84,7.69]
[1756748010489,0.05,197.97,197.84,7.69]
[1756748010698,0.05,197.95,197.84,7.69]
[1756748010899,38.74,197.94,197.87,7.69]
[1756748011191,38.74,197.95,197.87,7.69]
[1756748011788,339.66,198.0,197.87,7.69]
[1756748011991,128.28,197.99,197.87,7.69]
[1756748012289,128.28,197.99,197.9,7.69]
[1756748012490,128.28,197.99,197.92,7.69]
[1756748012696,128.28,197.99,197.93,4.57874761]
[1756748012997,128.28,197.99,197.95,7.69]
[1756748013293,128.28,197.99,197.94,4.57874761]
[1756748013294,339.66,198.0,197.96,4.57874761]
[1756748013499,467.94,198.0,197.98,7.69]
[1756748013795,467.94,198.0,197.99,4.57874761]
[1756748014991,467.94,198.0,197.94,7.69]
[1756748015293,128.26,197.99,197.96,7.69]
[1756748015597,467.92,198.0,197.97,4.57720012]
[1756748015797,467.92,198.0,197.99,7.69]
[1756748016000,467.92,198.0,197.99,4.57720012]
[1756748016799,467.97,198.0,197.99,4.57720012]
[1756748018002,467.92,198.0,197.99,4.57720012]
[1756748018301,469.2993208,198.0,197.88,7.95]
[1756748018504,468.7993208,198.0,197.88,7.95]
[1756748018998,4.57562046,197.99,197.84,7.95]
[1756748019899,128.22,197.98,197.84,4.22598006]
[1756748020095,128.22,197.98,197.85,7.95]
[1756748020296,340.5393208,198.0,197.87,7.95]
[1756748020598,128.2,197.99,197.87,7.95]
[1756748022602,340.5393208,198.0,197.87,7.95]
[1756748022904,5.60126543,198.08,197.93,7.95]
[1756748023104,128.2,198.07,197.96,7.95]
[1756748023299,129.07912088,198.07,197.96,7.95]
[1756748024200,0.87912088,198.07,197.96,7.95]
[1756748024399,64.08,198.06,197.96,7.95]
[1756748025704,0.87912088,198.07,197.96,7.95]
[1756748025905,124.8,198.06,197.98,4.57562046]
[1756748026107,124.8,198.06,197.96,7.95]
[1756748027001,0.87912088,198.07,197.96,7.95]
[1756748027203,128.16,198.05,197.96,7.95]
[1756748027705,128.16,198.05,197.92,7.95]
[1756748027911,128.16,198.05,197.94,4.57562046]
[1756748030202,128.16,198.05,197.95,4.58714339]
[1756748030507,128.16,198.05,197.96,4.58714339]
[1756748030702,128.16,198.05,197.97,4.58714339]
[1756748030904,0.87912088,198.07,197.98,4.58714339]
[1756748031106,63.24,198.06,197.99,4.58714339]
[1756748031300,63.24,198.06,198.0,4.58714339]
[1756748031505,63.24,198.06,198.01,4.58714339]
[1756748031810,63.24,198.06,198.02,4.58714339]
[1756748032107,63.24,198.06,198.03,4.58714339]
[1756748032300,63.24,198.06,198.04,4.58714339]
[1756748032497,63.24,198.06,197.97,4.57562046]
[1756748032706,63.24,198.06,197.98,4.58584844]
[1756748032899,63.24,198.06,197.99,4.58584844]
[1756748033101,63.24,198.06,198.0,4.58584844]
[1756748033300,63.24,198.06,198.01,4.58584844]
[1756748033498,63.24,198.06,198.02,4.58584844]
[1756748033700,63.24,198.06,197.97,4.57562046]
[1756748033701,63.24,198.06,198.03,4.58584844]
[1756748033902,63.24,198.06,198.04,4.58584844]
[1756748034101,63.24,198.06,197.97,4.57562046]
[1756748034306,63.24,198.06,197.98,4.58580347]
[1756748034506,63.24,198.06,197.99,4.58580347]
[1756748034710,63.24,198.06,198.0,4.58580347]
[1756748035010,63.24,198.06,198.01,4.58580347]
[1756748035210,63.24,198.06,198.02,4.58580347]
[1756748035412,63.24,198.06,197.94,4.57562046]
[1756748035612,63.24,198.06,197.95,4.58686424]
[1756748035813,63.24,198.06,197.96,4.58686424]
[1756748036016,63.24,198.06,197.97,4.58686424]
[1756748036209,63.24,198.06,197.98,4.58686424]
[1756748036512,63.24,198.06,197.99,4.58686424]
[1756748036712,63.24,198.06,198.0,4.58686424]
[1756748036914,63.24,198.06,197.92,7.95]
[1756748037114,63.24,198.06,197.93,4.58734209]
[1756748037314,63.24,198.06,197.94,4.58734209]
[1756748037516,63.24,198.06,197.95,4.58734209]
[1756748037809,63.24,198.06,197.96,4.58734209]
[1756748038011,0.87912088,198.07,197.97,4.58734209]
[1756748038314,128.08,198.06,197.95,7.95]
[1756748038509,128.08,198.06,197.92,4.57562046]
[1756748039017,128.08,198.06,197.91,7.95]
[1756748040210,4.57562046,198.05,197.91,7.95]
[1756748040412,4.57562046,198.05,197.89,4.57562046]
[1756748040609,10.17688589,198.05,197.87,7.95]
[1756748042015,4.57562046,198.05,197.87,7.95]
[1756748043117,5.60126543,198.06,197.86,4.57562046]
[1756748043118,128.06,198.04,197.94,7.95]
[1756748045122,128.06,198.04,197.9,7.95]
[1756748045826,128.06,198.04,197.91,4.7610162]
[1756748046020,128.06,198.04,197.92,4.7610162]
[1756748046221,128.04,198.03,197.93,4.7610162]
[1756748046419,128.04,198.03,197.94,4.76112186]
[1756748046616,128.04,198.02,197.95,4.76112186]
[1756748046813,128.04,198.02,197.96,4.76112186]
[1756748047013,128.04,198.02,197.97,4.76112186]
[1756748047219,128.04,198.02,197.98,4.76112186]
[1756748047420,128.04,198.02,197.99,4.76112186]
[1756748047621,128.04,198.02,198.0,4.76112186]
[1756748047825,128.04,198.02,197.9,7.95]
[1756748048018,128.04,198.02,197.91,4.76127359]
[1756748048218,128.04,198.02,197.92,4.76127359]
[1756748048219,4.57562046,198.01,197.92,4.76127359]
[1756748048419,4.57562046,198.01,197.93,4.76127359]
[1756748048721,4.57562046,198.01,197.87,7.87]
[1756748050827,4.57562046,197.95,197.82,7.87]
[1756748051025,458.22,197.94,197.82,7.87]
[1756748051325,4.57562046,197.92,197.82,7.87]
[1756748051926,128.02,197.91,197.82,7.87]
[1756748052625,128.02,197.9,197.82,7.87]
[1756748052826,128.02,197.9,197.78,7.87]
[1756748053027,4.57562046,197.89,197.78,7.87]
[1756748053823,128.02,197.9,197.75,7.87]
[1756748053824,4.57562046,197.86,197.75,7.87]
[1756748054526,128.02,197.9,197.75,7.87]
[1756748054723,4.57562046,197.86,197.75,7.87]
[1756748055124,4.57562046,197.86,197.68,4.57562046]
[1756748055322,4.57562046,197.8,197.67,7.87]
[1756748055526,80.9,197.79,197.67,7.87]
[1756748056818,344.27562046,197.8,197.67,7.87]
[1756748057018,128.02,197.79,197.67,7.87]
[1756748057222,344.27562046,197.8,197.67,7.87]
[1756748057526,128.02,197.79,197.67,7.87]
[1756748058329,128.04,197.78,197.67,7.87]
[1756748058519,339.7,197.8,197.67,7.87]
[1756748058723,128.04,197.77,197.67,7.87]
[1756748059226,128.04,197.76,197.67,7.87]
[1756748059626,128.04,197.75,197.69,7.87]
[1756748060725,128.04,197.78,197.72,7.87]
[1756748061129,339.7,197.8,197.72,7.87]
[1756748061324,128.04,197.79,197.72,7.87]
[1756748061928,128.04,197.79,197.68,12.44562046]
[1756748062232,128.04,197.79,197.68,7.87]
[1756748062629,128.04,197.78,197.68,7.87]
[1756748062829,128.06,197.77,197.68,7.87]
[1756748063030,128.04,197.76,197.68,7.87]
[1756748063429,339.7,197.8,197.68,7.87]
[1756748063629,128.04,197.79,197.68,7.87]
[1756748064633,339.7,197.8,197.68,7.87]
[1756748064634,128.04,197.78,197.68,7.87]
[1756748064933,339.7,197.8,197.68,7.87]
[1756748065139,128.04,197.79,197.7,7.87]
[1756748065838,128.04,197.78,197.7,7.87]
[1756748066232,128.04,197.78,197.64,4.57562046]
[1756748066433,128.04,197.78,197.65,7.87]
[1756748066636,128.04,197.78,197.56,7.87]
[1756748066936,4.57562046,197.72,197.56,7.87]
[1756748067133,128.04,197.71,197.56,7.87]
[1756748067630,128.04,197.7,197.59,7.87]
[1756748067932,4.57562046,197.74,197.59,7.87]
[1756748068139,128.06,197.73,197.59,7.87]
[1756748069242,339.7,197.8,197.59,7.87]
[1756748069439,4.57562046,197.76,197.59,7.87]
[1756748069636,128.06,197.75,197.59,7.87]
[1756748070235,4.57562046,197.76,197.59,7.87]
[1756748070431,128.06,197.75,197.59,7.87]
[1756748070837,4.57562046,197.77,197.59,7.87]
[1756748071046,4.57562046,197.77,197.53,70.8639]
[1756748071047,128.08,197.76,197.62,7.87]
[1756748071540,128.08,197.75,197.62,7.87]
[1756748071736,4.57562046,197.77,197.62,7.87]
[1756748071952,128.08,197.74,197.62,7.87]
[1756748072343,4.57562046,197.77,197.62,7.87]
[1756748072642,128.08,197.76,197.62,7.87]
[1756748072842,4.57562046,197.77,197.62,7.87]
[1756748073046,4.57562046,197.88,197.72,7.87]
[1756748073241,40.98,197.87,197.72,7.87]
[1756748073442,339.98,197.91,197.74,7.87]
[1756748073639,339.98,197.91,197.76,4.57562046]
[1756748073640,77.96,197.9,197.76,4.57562046]
[1756748073948,77.96,197.9,197.77,7.87]
[1756748074647,77.96,197.9,197.78,4.57562046]
[1756748075140,77.96,197.9,197.75,4.57562046]
[1756748076043,4.57562046,197.89,197.73,7.87]
[1756748077147,339.98,197.91,197.76,7.87]
[1756748077450,48.78,197.9,197.78,4.57562046]
[1756748078051,48.78,197.9,197.76,7.87]
[1756748079243,339.98,197.91,197.79,7.95]
[1756748079454,128.06,197.9,197.79,7.95]
[1756748079952,132.63562046,197.9,197.67,7.95]
[1756748080248,132.63562046,197.9,197.64,8.80160052]
[1756748080249,132.63562046,197.9,197.74,12.52562046]
[1756748081147,132.63562046,197.9,197.74,7.95]
[1756748081148,4.57562046,197.87,197.74,7.95]
[1756748082737,4.57562046,197.87,197.71,4.57562046]
[1756748084049,4.57562046,197.9,197.75,7.95]
[1756748084349,54.22,197.86,197.75,7.95]
[1756748087755,54.22,197.86,197.71,4.57562046]
[1756748087756,54.22,197.86,197.71,7.95]
[1756748087955,4.57562046,197.84,197.71,7.95]
[1756748091349,64.98,197.83,197.71,7.95]
[1756748091556,64.98,197.82,197.71,7.95]
[1756748091854,99.16,197.81,197.71,7.95]
[1756748092551,345.58126543,197.91,197.74,4.57562046]
[1756748092858,128.04,197.9,197.75,7.95]
[1756748094356,128.02,197.89,197.75,7.95]
[1756748095753,344.55562046,197.91,197.75,7.95]
[1756748095951,339.98,197.91,197.78,7.95]
[1756748096147,128.02,197.9,197.78,7.95]
[1756748097350,128.02,197.89,197.78,7.95]
[1756748098660,128.0,197.88,197.78,7.95]
[1756748099356,0.03,197.87,197.78,7.95]
[1756748100658,128.0,197.86,197.78,7.95]
[1756748101556,128.0,197.85,197.78,7.95]
[1756748101952,128.0,197.85,197.8,2.8626951]
[1756748102156,128.0,197.85,197.81,7.95]
[1756748102756,340.01,197.91,197.81,7.95]
[1756748103065,127.98,197.9,197.83,2.8626951]
[1756748103357,127.98,197.89,197.83,2.8626951]
[1756748103551,340.01,197.91,197.83,10.8126951]
[1756748103753,127.98,197.9,197.83,10.8126951]
[1756748104260,339.98,197.91,197.86,2.8626951]
[1756748104461,339.98,197.91,197.77,70.7779]
[1756748104663,0.03,197.99,197.88,10.8126951]
[1756748104963,127.98,197.98,197.88,10.8126951]
[1756748105561,127.98,197.98,197.91,2.8626951]
[1756748105964,127.96,197.97,197.88,12.52552876]
[1756748106164,127.96,197.96,197.88,12.52552876]
[1756748109362,5.60126543,198.06,197.94,4.57552876]
[1756748109563,0.87912088,198.07,197.95,7.91]
[1756748109765,9.54,198.05,197.97,4.57552876]
[1756748111171,0.87912088,198.07,197.98,7.91]
[1756748111366,37.7,198.06,197.98,7.91]
[1756748111667,37.7,198.06,197.99,4.57552876]
[1756748111868,72.8,198.05,197.99,4.57552876]
[1756748112464,105.2,198.05,197.99,4.57552876]
[1756748113266,0.87904316,198.11,197.99,4.57552876]
[1756748113470,36.86,198.1,198.02,4.57552876]
[1756748113865,71.86,198.09,198.02,4.57552876]
[1756748114065,0.87904316,198.11,198.02,4.57552876]
[1756748114366,105.12,198.08,198.02,4.57552876]
[1756748114568,0.87904316,198.11,198.02,4.57552876]
[1756748114866,127.88,198.1,198.02,4.57552876]
[1756748115370,0.87904316,198.11,198.02,4.57552876]
[1756748115571,0.87904316,198.11,198.03,7.91]
[1756748115969,127.86,198.1,198.03,7.91]
[1756748116871,127.86,198.1,198.01,4.57552876]
[1756748119973,127.84,198.1,198.04,4.57552876]
[1756748120875,127.84,198.11,198.05,7.91]
[1756748121371,127.84,198.11,198.01,4.57552876]
[1756748121572,127.84,198.11,198.0,7.91]
[1756748121771,127.84,198.11,198.01,4.57552876]
[1756748123471,127.84,198.11,198.0,7.91]
[1756748123672,340.65877678,198.15,197.99,12.48552876]
[1756748123872,127.8,198.14,197.99,12.48552876]
[1756748124065,340.65877678,198.15,197.99,12.48552876]
[1756748124273,127.8,198.13,197.99,12.48552876]
[1756748125076,127.8,198.13,197.99,4.57552876]
[1756748125387,4.57552876,198.07,197.92,7.91]
[1756748125582,127.8,198.06,197.91,4.57552876]
[1756748125775,4.57552876,198.04,197.88,12.48552876]
[1756748125982,2.86059944,197.98,197.88,7.91]
[1756748126174,17.52,197.97,197.86,2.86059944]
[1756748126773,17.52,197.97,197.84,7.91]
[1756748126978,17.52,197.97,197.85,2.86059944]
[1756748128077,17.52,197.97,197.84,12.48712916]
[1756748129783,22.09712916,197.97,197.8,12.48712916]
[1756748130482,4.57712916,197.97,197.81,7.91]
[1756748130677,38.78,197.96,197.84,7.91]
[1756748131078,339.5,198.01,197.84,7.91]
[1756748131281,127.8,198.0,197.84,7.91]
[1756748131584,127.8,197.99,197.84,7.91]
[1756748131783,127.8,197.99,197.87,7.91]
[1756748131981,344.07712916,198.01,197.87,7.91]
[1756748132180,127.82,198.0,197.87,7.91]
[1756748133480,339.5,198.01,197.87,7.91]
[1756748133683,127.82,198.0,197.87,7.91]
[1756748137881,339.5,198.01,197.89,4.57712916]
[1756748138087,127.82,198.0,197.9,7.85]
[1756748138282,127.82,197.99,197.9,7.85]
[1756748139378,127.82,197.99,197.92,4.57712916]
[1756748141490,127.82,197.99,197.82,4.22598006]
[1756748141491,127.82,197.99,197.89,12.42712916]
[1756748142586,127.82,197.99,197.86,4.57712916]
[1756748143591,127.8,197.98,197.86,4.57712916]
[1756748144389,339.5,198.01,197.87,7.85]
[1756748144582,339.5,198.01,197.8,70.765]
[1756748144583,339.5,198.01,197.9,7.85]
[1756748144889,127.8,198.0,197.92,4.57712916]
[1756748145094,339.5,198.01,197.92,4.57712916]
[1756748145590,127.8,198.0,197.95,4.57712916]
[1756748145793,127.8,198.0,197.96,7.85]
[1756748147087,6.48004221,198.15,197.99,4.57712916]
[1756748147288,0.87877678,198.15,198.05,4.57712916]
[1756748147592,1.4,198.14,198.09,4.57712916]
[1756748147791,1.4,198.16,198.09,12.42712916]
[1756748148090,127.78,198.18,198.12,4.57712916]
[1756748148994,127.78,198.18,198.12,12.42712916]
[1756748149192,127.78,198.18,198.15,4.57712916]
[1756748152990,127.78,198.18,198.12,4.57712916]
[1756748153594,127.78,198.18,198.15,4.57712916]
[1756748154193,127.78,198.18,198.1,7.85]
[1756748154499,127.78,198.18,198.12,4.57712916]
[1756748154800,127.78,198.18,198.16,4.57712916]
[1756748155900,127.7,198.23,198.16,4.57712916]
[1756748156398,339.6,198.25,198.2,4.57712916]
[1756748156698,127.7,198.27,198.2,12.42712916]
[1756748157196,127.7,198.27,198.21,4.57712916]
[1756748158502,127.7,198.27,198.18,4.57712916]
[1756748160994,127.7,198.27,198.21,4.57712916]
[1756748163205,127.7,198.27,198.15,4.57712916]
[1756748163503,128.57817803,198.27,198.15,4.57712916]
[1756748163707,128.57817803,198.27,198.12,7.85]
[1756748163708,0.87817803,198.27,198.18,4.57712916]
[1756748164003,127.64,198.27,198.21,4.57712916]
[1756748164207,0.87800078,198.33,198.21,4.57712916]
[1756748164505,127.64,198.32,198.21,4.57712916]
[1756748165702,127.64,198.32,198.18,4.57712916]
[1756748166301,0.87800078,198.33,198.18,12.42712916]
[1756748166500,35.32,198.32,198.21,4.57712916]
[1756748167303,0.87800078,198.33,198.21,12.42712916]
[1756748167502,127.62,198.32,198.21,12.42712916]
[1756748167697,127.62,198.32,198.23,4.57712916]
[1756748168100,0.87800078,198.33,198.23,4.57712916]
[1756748168298,0.87800078,198.33,198.21,7.85]
[1756748168497,4.57712916,198.48,198.32,4.57712916]
[1756748168702,53.18,198.47,198.32,4.57712916]
[1756748168900,0.87751371,198.45,198.32,4.57712916]
[1756748169510,5.45464287,198.45,198.26,8.15]
[1756748169703,5.45464287,198.45,198.27,4.57712916]
[1756748170104,0.87751371,198.45,198.27,4.57712916]
[1756748170304,132.19712916,198.44,198.3,4.57712916]
[1756748170503,0.87751371,198.45,198.3,4.57712916]
[1756748170901,0.87751371,198.45,198.29,8.15]
[1756748170902,41.94,198.44,198.33,4.57712916]
[1756748171408,0.87751371,198.45,198.33,4.57712916]
[1756748171609,36.82,198.44,198.33,4.57712916]
[1756748171809,0.87751371,198.45,198.33,4.57712916]
[1756748172009,72.26,198.43,198.33,4.57712916]
[1756748172606,0.87751371,198.45,198.33,4.57712916]
[1756748172804,105.94,198.42,198.33,4.57712916]
[1756748174008,0.87751371,198.45,198.33,4.57712916]
[1756748174207,339.18,198.49,198.24,4.57712916]
[1756748174208,39.34,198.47,198.37,8.15]
[1756748174713,39.34,198.47,198.39,4.57712916]
[1756748175012,39.34,198.47,198.37,8.15]
[1756748175211,39.34,198.47,198.39,4.57712916]
[1756748175512,340.05731461,198.49,198.39,4.57712916]
[1756748175812,0.03255149,198.45,198.39,4.57712916]
[1756748176721,0.03255149,198.45,198.4,0.03214891]
[1756748180307,127.7,198.44,198.4,0.03214891]
[1756748180507,127.7,198.43,198.4,0.03214891]
[1756748180805,0.03255149,198.45,198.4,0.03214891]
[1756748181009,127.68,198.44,198.4,8.18214891]
[1756748181209,127.68,198.44,198.41,8.15]
[1756748181608,127.68,198.44,198.4,0.03214891]
[1756748182912,0.03255149,198.45,198.4,0.03214891]
[1756748183107,127.76,198.44,198.4,0.03214891]
[1756748183511,128.26,198.44,198.4,0.03214891]
[1756748185512,127.76,198.44,198.4,0.03214891]
[1756748185913,4.57712916,198.42,198.25,8.15]
[1756748186119,4.57712916,198.42,198.26,4.52634187]
[1756748186312,4.57712916,198.42,198.27,4.52634187]
[1756748186516,4.57712916,198.42,198.25,8.15]
[1756748186816,4.57712916,198.42,198.26,4.52997643]
[1756748187018,4.57712916,198.42,198.28,8.15]
[1756748187316,0.03686662,198.36,198.28,8.15]
[1756748187515,14.3,198.35,198.28,8.15]
[1756748188018,14.3,198.35,198.29,4.53463664]
[1756748188217,14.3,198.35,198.28,8.15]
[1756748188417,14.3,198.35,198.29,4.54081593]
[1756748188618,14.3,198.35,198.28,8.15]
[1756748188919,14.3,198.35,198.29,4.52859441]
[1756748189115,14.3,198.35,198.28,8.15]
[1756748189311,14.3,198.35,198.29,4.52859483]
[1756748189518,14.3,198.35,198.24,4.57712916]
[1756748189820,14.3,198.35,198.25,4.53567466]
[1756748190009,14.3,198.35,198.26,4.53567466]
[1756748190214,14.3,198.35,198.24,4.57712916]
[1756748190215,0.03303694,198.32,198.24,4.57712916]
[1756748190418,0.03303694,198.32,198.25,4.54068841]